bitfinex/quotes_ETHUSD_20251212
["timestamp","ask_amount","ask_price","bid_price","bid_amount"]
[1765574142469,1.337804,3087.0,3086.9,0.002]
[1765574142683,4.57719499,3087.0,3086.9,0.002]
[1765574143101,5.35884272,3087.0,3086.9,0.002]
[1765574150307,5.93931801,3087.0,3086.9,0.002]
[1765574151408,12.08358387,3087.0,3086.9,0.002]
[1765574151608,42.08358387,3087.0,3086.9,0.002]
[1765574151987,42.21336951,3087.0,3086.9,0.002]
[1765574152192,42.38258401,3087.0,3086.9,0.002]
[1765574152414,28.46216301,3087.0,3086.9,0.002]
[1765574152701,33.94793301,3087.0,3086.9,0.002]
[1765574152906,27.80366715,3087.0,3086.9,0.002]
[1765574153721,30.996204,3086.7,3086.6,1e-08]
[1765574154013,41.47465098,3086.7,3086.6,1e-08]
[1765574154178,41.96265098,3086.7,3086.6,1e-08]
[1765574154376,42.09245726,3086.7,3086.6,1e-08]
[1765574154579,0.405504,3086.1,3086.0,0.002]
[1765574154776,12.86908429,3086.1,3086.0,0.002]
[1765574155024,14.15599272,3086.1,3086.0,0.002]
[1765574155517,3.67518772,3086.1,3086.0,0.002]
[1765574155822,8.55349929,3086.1,3086.0,0.002]
[1765574156038,10.43043398,3086.1,3086.0,0.002]
[1765574156393,3.24033569,3086.1,3086.0,0.4521]
[1765574156701,3.75433569,3086.1,3086.0,0.4521]
[1765574156901,4.15983969,3086.1,3086.0,0.4521]
[1765574157296,3.75433569,3086.1,3086.0,0.4521]
[1765574157723,4.15983969,3086.1,3086.0,0.4521]
[1765574158721,4.15983969,3086.1,3086.0,0.002]
[1765574159928,5.30732706,3086.1,3086.0,0.002]
[1765574160114,4.81072706,3086.1,3086.0,0.4521]
[1765574160317,4.15983969,3086.1,3086.0,0.9022]
[1765574160497,3.75433569,3086.1,3086.0,0.9022]
[1765574161629,3.75433569,3086.1,3086.0,0.4521]
[1765574162081,4.25093569,3086.1,3086.0,0.002]
[1765574162250,4.73893569,3086.1,3086.0,0.002]
[1765574162448,6.26637848,3086.1,3086.0,0.002]
[1765574162742,13.53793048,3086.1,3086.0,0.002]
[1765574163317,6.26637848,3086.1,3086.0,0.002]
[1765574163536,3.64583969,3086.1,3086.0,0.4521]
[1765574163840,4.15983969,3086.1,3086.0,0.4521]
[1765574164814,3.64583969,3086.1,3086.0,0.4521]
[1765574165139,4.15983969,3086.1,3086.0,0.4521]
[1765574166140,4.15983969,3086.1,3086.0,0.002]
[1765574166326,4.89984617,3086.1,3086.0,0.4521]
[1765574166818,5.39644617,3086.1,3086.0,0.002]
[1765574167126,5.88444617,3086.1,3086.0,0.002]
[1765574167826,5.39644617,3086.1,3086.0,0.002]
[1765574168418,4.89984617,3086.1,3086.0,0.4521]
[1765574168919,6.47941166,3086.7,3086.0,0.9022]
[1765574169234,1.09447529,3086.6,3086.2,0.4501]
[1765574169617,0.405504,3086.5,3086.2,0.4501]
[1765574170126,0.405504,3086.5,3086.4,0.4501]
[1765574171528,4.22589505,3086.5,3086.4,0.4501]
[1765574174823,3.2389713,3087.4,3086.4,0.9002]
[1765574175019,0.84734692,3087.3,3086.5,0.4501]
[1765574175216,0.405504,3087.2,3086.5,0.9002]
[1765574175448,0.405504,3087.2,3086.6,0.4501]
[1765574175843,3.23928606,3087.1,3086.6,0.4501]
[1765574176136,0.58047529,3087.0,3086.6,0.4501]
[1765574176319,0.514,3086.9,3086.6,0.4501]
[1765574176834,0.514,3086.9,3086.8,0.4501]
[1765574178452,0.514,3086.9,3086.8,0.9002]
[1765574179848,1.05197529,3087.7,3086.8,0.9002]
[1765574180152,0.58047529,3087.5,3087.4,0.4501]
[1765574180351,1.62530383,3087.5,3087.4,0.4501]
[1765574180551,4.86417022,3087.5,3087.4,0.4501]
[1765574180722,8.58873661,3087.5,3087.2,0.1455]
[1765574180925,4.86417022,3087.5,3087.4,0.4501]
[1765574181154,4.86417022,3087.5,3087.1,0.1455]
[1765574181353,4.86417022,3087.5,3086.9,0.4501]
[1765574181354,0.48641702,3087.4,3086.9,0.4501]
[1765574181651,0.48641702,3087.4,3086.1,0.1336]
[1765574181652,0.98101702,3087.4,3086.5,0.4501]
[1765574181957,0.98101702,3087.4,3086.5,6.59232496]
[1765574181958,0.405504,3087.3,3086.5,6.59232496]
[1765574182158,0.900104,3087.3,3086.5,6.59232496]
[1765574183055,0.900104,3087.3,3086.5,6.14222496]
[1765574183056,0.405504,3087.1,3086.5,6.14222496]
[1765574183252,0.405504,3086.9,3086.1,0.1336]
[1765574183432,0.405504,3086.9,3086.2,6.14222496]
[1765574183637,0.4946,3086.8,3086.2,6.14222496]
[1765574184732,0.405504,3086.7,3086.2,6.14222496]
[1765574185054,0.513,3086.6,3086.2,6.14222496]
[1765574185628,3.23991576,3086.5,3086.2,6.14222496]
[1765574185873,0.405504,3086.2,3086.0,0.002]
[1765574186025,1.404204,3086.1,3086.0,0.002]
[1765574186230,1.898804,3086.1,3086.0,0.002]
[1765574188061,5.13913969,3086.1,3086.0,0.002]
[1765574188270,5.97707629,3086.1,3086.0,0.002]
[1765574198743,4.99677629,3086.1,3086.0,0.4521]
[1765574199064,5.48247629,3086.1,3086.0,0.002]
[1765574199673,4.99677629,3086.1,3086.0,0.4521]
[1765574199964,4.99677629,3086.1,3086.0,0.002]
[1765574200167,5.48247629,3086.1,3086.0,0.002]
[1765574200365,4.15883969,3086.1,3086.0,0.4521]
[1765574200768,4.15883969,3086.1,3086.0,0.002]
[1765574201084,29.71449294,3086.1,3086.0,0.002]
[1765574201237,41.86183994,3086.1,3086.0,0.002]
[1765574201443,39.44107294,3086.1,3086.0,0.002]
[1765574201642,42.66246297,3086.1,3086.0,0.002]
[1765574201843,42.79227599,3086.1,3086.0,0.002]
[1765574202362,45.21304299,3086.1,3086.0,0.002]
[1765574202860,37.80137799,3086.1,3086.0,0.002]
[1765574203044,36.88028499,3086.1,3086.0,0.002]
[1765574203769,40.38573215,3086.1,3086.0,0.002]
[1765574204544,48.71849015,3086.1,3086.0,0.002]
[1765574205568,36.50914515,3086.1,3086.0,0.002]
[1765574205769,14.81498203,3086.1,3086.0,0.002]
[1765574205946,15.82358203,3086.1,3086.0,0.002]
[1765574208171,15.32898203,3086.1,3086.0,0.002]
[1765574208377,15.82358203,3086.1,3086.0,0.002]
[1765574209684,15.32898203,3086.1,3086.0,0.002]
[1765574209886,15.82358203,3086.1,3086.0,0.002]
[1765574210979,3.24033569,3086.1,3086.0,0.4521]
[1765574211280,4.15983969,3086.1,3086.0,0.9022]
[1765574211484,4.74031498,3086.1,3086.0,0.9022]
[1765574211854,4.33481098,3086.1,3086.0,0.9022]
[1765574212374,4.74031498,3086.1,3086.0,0.9022]
[1765574214378,4.74031498,3086.1,3086.0,0.4521]
[1765574215451,4.74031498,3086.1,3086.0,0.002]
[1765574215657,5.19451498,3086.1,3086.0,0.002]
[1765574216765,6.50878958,3086.1,3086.0,0.002]
[1765574217470,6.03798958,3086.1,3086.0,0.002]
[1765574217678,5.58378958,3086.1,3086.0,0.002]
[1765574217878,5.58378958,3086.1,3086.0,0.4521]
[1765574218483,4.69031498,3086.1,3086.0,0.4521]
[1765574220064,4.69031498,3086.1,3086.0,0.9022]
[1765574221367,4.69031498,3086.1,3086.0,0.4521]
[1765574221564,35.61531498,3086.1,3086.0,0.002]
[1765574221772,33.28398498,3086.1,3086.0,0.002]
[1765574222070,0.405504,3085.5,3084.6,0.4521]
[1765574222394,0.405504,3085.5,3084.5,0.002]
[1765574222395,1.337404,3085.5,3084.5,0.002]
[1765574222691,1.808204,3085.5,3084.5,0.002]
[1765574223892,5.62964509,3085.5,3084.5,0.002]
[1765574224087,6.54771822,3085.5,3084.5,0.002]
[1765574225994,6.54771822,3085.5,3084.6,0.4521]
[1765574229626,6.54771822,3085.5,3084.5,0.002]
[1765574231184,28.18871622,3085.5,3084.5,0.002]
[1765574231499,27.63751622,3085.5,3084.5,0.002]
[1765574232008,21.55501922,3085.5,3084.5,0.002]
[1765574232210,11.78180922,3085.5,3084.5,0.002]
[1765574232409,5.14501822,3085.5,3085.4,0.4541]
[1765574232579,5.65801822,3085.5,3085.4,0.4541]
[1765574235009,5.14501822,3085.5,3085.4,0.4541]
[1765574235210,5.65801822,3085.5,3085.4,0.4541]
[1765574235580,5.14501822,3085.5,3085.4,0.4541]
[1765574235898,5.65801822,3085.5,3085.4,0.4541]
[1765574237213,3.95977819,3086.2,3085.4,0.4541]
[1765574237214,3.24044069,3086.0,3085.4,0.9062]
[1765574237398,0.513,3085.9,3085.6,0.4521]
[1765574237716,1.09347529,3085.9,3085.5,0.4521]
[1765574237914,1.49897929,3085.9,3085.8,0.4521]
[1765574238316,1.09347529,3085.9,3085.8,0.9042]
[1765574238514,0.513,3085.9,3085.8,0.9042]
[1765574238984,1.49897929,3085.9,3085.8,0.9042]
[1765574240516,4.73952499,3085.9,3085.8,0.4521]
[1765574240817,4.73952499,3085.9,3085.8,0.9042]
[1765574243311,4.73952499,3085.9,3085.8,0.4521]
[1765574244318,4.73952499,3085.9,3085.8,0.9042]
[1765574244693,4.73952499,3085.9,3085.8,0.4521]
[1765574245211,4.73952499,3085.9,3085.8,0.9042]
[1765574247409,4.33402099,3085.9,3085.8,0.9042]
[1765574254022,0.513,3085.9,3085.8,0.9042]
[1765574254801,0.58047529,3086.1,3085.8,0.9042]
[1765574254996,0.58047529,3086.1,3085.5,6.14618163]
[1765574254997,0.58047529,3086.1,3086.0,0.4521]
[1765574255202,1.09347529,3086.1,3086.0,0.4521]
[1765574255402,1.09347529,3086.1,3086.0,0.9042]
[1765574255932,4.33381098,3086.1,3086.0,0.9042]
[1765574256125,4.33381098,3086.1,3086.0,0.4521]
[1765574257644,4.33381098,3086.1,3086.0,0.9042]
[1765574258932,4.33381098,3086.1,3086.0,0.4521]
[1765574258933,4.73931498,3086.1,3086.0,0.4521]
[1765574259130,5.53727349,3086.1,3086.0,0.4521]
[1765574260235,9.70940918,3086.1,3085.4,0.4541]
[1765574260936,0.405504,3086.0,3085.4,0.4541]
[1765574261831,0.405504,3086.0,3085.9,0.4521]
[1765574262037,0.1978,3085.9,3085.4,0.002]
[1765574262235,0.405504,3085.7,3085.4,0.002]
[1765574262409,0.881304,3085.5,3085.4,0.002]
[1765574263011,1.337304,3085.5,3085.4,0.002]
[1765574263820,0.881304,3085.5,3085.4,0.002]
[1765574264028,0.405504,3085.5,3085.4,0.4541]
[1765574266618,0.405504,3085.5,3085.4,0.9062]
[1765574267727,3.6464698,3085.5,3085.4,0.002]
[1765574267927,4.38649292,3085.5,3085.4,0.002]
[1765574268613,4.86229292,3085.5,3085.4,0.002]
[1765574269344,5.31829292,3085.5,3085.4,0.002]
[1765574270012,4.86229292,3085.5,3085.4,0.002]
[1765574270417,1.62132712,3085.5,3085.4,0.002]
[1765574270618,0.405504,3085.5,3085.4,0.002]
[1765574270942,3.6464698,3085.5,3085.4,0.4541]
[1765574271346,0.405504,3085.5,3085.4,0.4541]
[1765574273050,0.405504,3085.5,3085.4,0.9054]
[1765574274373,0.513,3085.6,3085.4,0.9054]
[1765574274710,3.24068811,3085.8,3085.5,0.4521]
[1765574274820,0.513,3085.6,3085.5,0.4513]
[1765574275242,0.513,3085.6,3085.5,0.9034]
[1765574280344,0.513,3085.8,3085.5,10.29116617]
[1765574280545,0.513,3086.1,3085.6,0.4513]
[1765574280732,0.513,3086.1,3085.7,9.83958885]
[1765574281056,0.918504,3086.1,3086.0,0.4521]
[1765574281560,5.08543969,3086.1,3085.4,0.002]
[1765574281756,5.08543969,3086.1,3085.4,0.4533]
[1765574282061,0.4563,3086.0,3085.4,0.002]
[1765574282575,0.1894,3085.9,3085.4,0.002]
[1765574282941,3.88626587,3085.9,3085.4,0.4533]
[1765574283362,0.6457,3085.9,3085.4,0.4533]
[1765574283662,3.88624968,3085.9,3085.4,0.4533]
[1765574287466,3.88624968,3085.9,3085.4,3.69436537]
[1765574287769,3.88624968,3085.9,3085.4,0.4533]
[1765574287974,3.24054968,3085.9,3085.5,0.4513]
[1765574289074,0.405504,3085.5,3085.4,0.002]
[1765574289380,1.326804,3085.5,3085.4,0.002]
[1765574289698,4.5677698,3085.5,3085.4,0.002]
[1765574290172,4.5677698,3085.5,3085.4,0.4541]
[1765574290173,0.686,3085.5,3085.4,0.4541]
[1765574290353,0.513,3085.5,3085.4,0.9054]
[1765574290551,0.513,3085.5,3085.4,0.4541]
[1765574297387,3.41386717,3085.6,3085.4,0.4541]
[1765574297388,0.173,3085.6,3085.4,0.4541]
[1765574297687,0.859604,3085.7,3085.5,0.4521]
[1765574297875,0.859604,3085.7,3085.6,0.4521]
[1765574298477,1.372604,3085.7,3085.6,0.4521]
[1765574300379,3.75375574,3085.7,3085.6,0.4521]
[1765574301091,4.66885574,3085.7,3085.4,0.002]
[1765574303398,5.06808597,3085.7,3085.4,0.002]
[1765574303584,4.47222781,3085.7,3085.4,0.002]
[1765574303986,0.4196,3085.5,3085.4,0.002]
[1765574304184,0.8784,3085.5,3085.4,0.002]
[1765574304377,0.405504,3085.6,3085.4,0.002]
[1765574306294,0.405504,3085.6,3085.5,0.4521]
[1765574306494,3.24069602,3085.8,3085.5,0.9042]
[1765574306699,0.513,3085.6,3085.5,0.9042]
[1765574306894,0.513,3085.6,3085.5,0.4521]
[1765574308607,0.513,3085.6,3085.4,0.002]
[1765574308608,4.66896077,3085.6,3085.4,0.002]
[1765574309601,0.4196,3085.5,3085.4,0.002]
[1765574312607,0.9718,3085.6,3085.4,0.4541]
[1765574312608,0.513,3085.6,3085.4,0.4541]
[1765574313594,3.7538648,3085.6,3085.4,0.4541]
[1765574313797,0.4563,3085.5,3085.4,0.002]
[1765574314376,4.2126648,3085.6,3085.4,0.002]
[1765574314576,0.4563,3085.5,3085.4,0.002]
[1765574315479,0.9151,3085.5,3085.4,0.002]
[1765574317602,4.1560658,3085.5,3085.4,0.002]
[1765574318208,4.1027698,3085.5,3085.4,0.002]
[1765574318519,6.41815155,3085.5,3085.4,0.002]
[1765574320808,3.17718575,3085.5,3085.4,0.002]
[1765574321010,2.29417953,3085.5,3085.4,0.002]
[1765574321309,5.53514533,3085.5,3085.4,0.002]
[1765574323208,2.29417953,3085.5,3085.4,0.002]
[1765574323918,1.37907953,3085.5,3085.4,0.4541]
[1765574324097,0.97357553,3085.5,3085.4,0.4541]
[1765574324417,0.98597929,3085.9,3085.4,0.9062]
[1765574324619,0.918504,3085.8,3085.7,0.4521]
[1765574324823,1.89199739,3085.8,3085.4,0.002]
[1765574325022,3.69960638,3085.7,3085.4,0.002]
[1765574325499,4.67309977,3085.7,3085.4,0.002]
[1765574325902,1.43229339,3085.7,3085.4,0.002]
[1765574326122,4.67306176,3085.7,3085.4,0.002]
[1765574326826,3.69956837,3085.7,3085.4,0.002]
[1765574327123,0.4521,3085.7,3085.4,0.4541]
[1765574327425,0.4521,3085.7,3085.6,0.4521]
[1765574327622,1.09985259,3085.9,3085.6,0.4521]
[1765574327829,0.58047529,3085.9,3085.8,0.4521]
[1765574328011,1.54757529,3085.9,3085.8,0.4521]
[1765574328211,4.78812099,3085.9,3085.5,0.4521]
[1765574329827,4.78812099,3085.9,3085.4,6.15073539]
[1765574330030,0.4588,3085.8,3085.4,0.002]
[1765574330395,4.78812099,3085.9,3085.4,0.4541]
[1765574330727,5.24412099,3085.9,3085.4,0.4541]
[1765574334934,8.02866669,3085.9,3085.4,0.4541]
[1765574335145,3.24075574,3085.7,3085.4,0.4541]
[1765574336044,3.24075574,3085.7,3085.4,0.002]
[1765574336240,0.4516,3085.5,3085.4,0.002]
[1765574336430,0.9646,3085.5,3085.4,0.002]
[1765574336638,1.4206,3085.5,3085.4,0.002]
[1765574337137,1.1376,3085.5,3085.4,0.002]
[1765574339345,0.686,3085.5,3085.4,0.002]
[1765574339537,0.686,3085.5,3085.4,0.4541]
[1765574340140,0.513,3085.5,3085.4,0.9062]
[1765574341562,0.513,3085.5,3085.4,0.4541]
[1765574341761,0.513,3085.5,3085.4,0.9062]
[1765574342052,0.513,3085.6,3085.4,0.9062]
[1765574342284,0.513,3085.6,3085.4,3.6951653]
[1765574342432,0.513,3085.6,3085.5,0.4521]
[1765574342627,0.513,3085.6,3085.5,0.9042]
[1765574344559,0.97344285,3085.9,3085.5,4.1451658]
[1765574344766,0.405504,3086.0,3085.5,4.1451658]
[1765574344767,0.513,3086.0,3085.8,0.4521]
[1765574345063,0.513,3086.0,3085.9,0.4521]
[1765574346863,4.66105436,3086.0,3085.5,3.24095315]
[1765574347162,4.66105436,3086.0,3085.5,0.4521]
[1765574347163,0.4332,3085.9,3085.5,0.4521]
[1765574347462,0.8892,3085.9,3085.4,9.39122032]
[1765574347657,0.8892,3085.9,3085.4,9.84332032]
[1765574348266,0.8892,3085.9,3085.5,0.4521]
[1765574349149,0.4332,3085.9,3085.5,0.4521]
[1765574349652,0.8892,3085.9,3085.4,9.39122032]
[1765574349835,0.8892,3085.9,3085.4,9.84332032]
[1765574350166,0.8892,3085.9,3085.4,9.39122032]
[1765574350363,0.8892,3085.9,3085.5,0.4521]
[1765574351965,0.4332,3085.9,3085.5,0.4521]
[1765574353035,0.513,3086.0,3085.5,3.69300852]
[1765574353234,0.513,3086.0,3085.8,0.4521]
[1765574353437,0.973326,3086.3,3085.9,0.4521]
[1765574353748,0.513,3086.3,3086.2,6.59833421]
[1765574356570,0.513,3086.3,3086.2,0.4521]
[1765574358084,0.9646,3086.3,3085.9,6.14623421]
[1765574358267,1.4206,3086.3,3085.7,3.24069565]
[1765574358575,0.456,3086.2,3085.7,3.24069565]
[1765574359185,0.513,3086.3,3085.8,0.4521]
[1765574359543,0.969,3086.3,3085.8,3.69272744]
[1765574360374,0.513,3086.3,3085.9,0.4521]
[1765574360879,0.513,3086.3,3085.9,6.59833421]
[1765574361573,0.513,3086.3,3085.9,9.38673157]
[1765574361771,0.513,3086.3,3085.9,9.83883157]
[1765574362973,0.513,3086.3,3086.0,0.4521]
[1765574365480,0.513,3086.3,3085.9,6.14623421]
[1765574365779,0.9679,3086.3,3085.9,6.14623421]
[1765574365988,4.20803593,3086.3,3085.7,3.69281413]
[1765574366148,0.4549,3086.2,3085.7,3.69281413]
[1765574366799,0.4549,3086.2,3085.8,3.24062942]
[1765574367080,0.4549,3086.2,3085.9,6.14623421]
[1765574367285,0.513,3086.3,3085.9,6.14623421]
[1765574367452,0.9679,3086.3,3085.9,6.14623421]
[1765574368168,0.9679,3086.3,3085.9,9.38674905]
[1765574368169,0.513,3086.3,3085.9,9.38674905]
[1765574368449,0.513,3086.3,3085.9,9.83884905]
[1765574369078,0.513,3086.3,3085.9,6.14623421]
[1765574369281,0.513,3086.3,3085.9,6.59833421]
[1765574369770,0.9679,3086.3,3085.9,6.59833421]
[1765574369968,0.513,3086.3,3086.2,0.4521]
[1765574372670,0.97325653,3086.7,3086.2,10.29066491]
[1765574372870,0.6363,3087.2,3086.6,0.4521]
[1765574373089,1.09347529,3086.9,3086.6,0.4521]
[1765574373600,3.75250185,3086.9,3086.6,0.4521]
[1765574379618,4.20740185,3086.9,3086.6,0.4521]
[1765574381824,7.4469037,3086.9,3086.6,0.4521]
[1765574382721,0.4705,3086.7,3086.5,6.14623421]
[1765574382926,0.4705,3086.7,3086.3,6.14623421]
[1765574383296,0.4705,3086.7,3086.3,6.59833421]
[1765574383828,0.4705,3086.7,3086.3,6.5944629]
[1765574384395,4.16513138,3086.7,3086.3,6.1423629]
[1765574385498,4.16513138,3086.7,3086.3,6.5944629]
[1765574385698,3.71023138,3086.7,3086.3,6.1423629]
[1765574385898,3.71023138,3086.7,3086.4,0.4521]
[1765574388733,0.4705,3086.7,3086.4,0.4521]
[1765574388934,3.23966076,3086.8,3086.4,0.4521]
[1765574389423,3.69456076,3086.8,3086.4,0.4521]
[1765574391006,0.4631,3086.5,3086.3,6.1423629]
[1765574391432,0.4609,3086.7,3086.3,6.1423629]
[1765574392039,0.4609,3086.7,3086.3,6.5944629]
[1765574393033,3.23966076,3086.8,3086.3,6.5944629]
[1765574393225,3.70056076,3086.8,3086.3,6.5944629]
[1765574394332,3.70056076,3086.8,3086.4,0.4521]
[1765574394932,3.70056076,3086.8,3086.3,6.1423629]
[1765574395134,3.70056076,3086.8,3086.3,6.5944629]
[1765574399240,3.70056076,3086.8,3086.3,6.1423629]
[1765574399537,3.70056076,3086.8,3086.4,0.4521]
[1765574399939,3.70056076,3086.8,3086.5,6.14225536]
[1765574404145,3.70056076,3086.8,3085.8,3.24059534]
[1765574404146,0.4631,3086.6,3085.8,3.24059534]
[1765574404310,0.417,3086.4,3085.7,9.38296397]
[1765574404725,0.4609,3086.3,3085.7,9.38296397]
[1765574404923,0.4609,3086.3,3086.0,6.14225536]
[1765574405344,0.4631,3086.1,3086.0,6.14225536]
[1765574405644,0.9761,3086.1,3086.0,6.14225536]
[1765574406953,0.513,3086.1,3086.0,6.59435536]
[1765574407452,0.513,3086.1,3086.0,9.83479605]
[1765574407634,0.513,3086.1,3086.0,6.59435536]
[1765574408554,0.513,3086.1,3086.0,9.83479605]
[1765574409451,0.513,3086.1,3086.0,10.28689605]
[1765574409750,0.513,3086.1,3086.0,7.04645536]
[1765574410136,0.513,3086.1,3086.0,6.59435536]
[1765574411963,0.513,3086.1,3085.8,3.24061689]
[1765574412161,0.9761,3086.1,3086.0,6.14225536]
[1765574412460,1.437,3086.1,3086.0,6.14225536]
[1765574412759,0.9761,3086.1,3085.9,6.14225536]
[1765574413056,0.513,3086.1,3086.0,3.69254069]
[1765574413258,0.513,3086.1,3086.0,0.4521]
[1765574413435,0.513,3086.1,3086.0,4.14464069]
[1765574413637,0.512,3086.1,3086.0,4.14464069]
[1765574414253,0.512,3086.1,3086.0,0.4521]
[1765574415058,0.512,3086.1,3086.0,3.69254069]
[1765574415358,0.512,3086.1,3086.0,4.14464069]
[1765574415954,0.97326284,3086.4,3086.0,4.14464069]
[1765574416160,0.512,3086.3,3086.2,6.14225536]
[1765574416834,0.9751,3086.3,3086.2,6.14225536]
[1765574417026,0.9751,3086.3,3086.0,6.1441874]
[1765574417463,1.436,3086.3,3086.0,6.1441874]
[1765574417640,1.436,3086.3,3086.0,9.38461156]
[1765574418555,0.9751,3086.3,3086.0,9.38461156]
[1765574419059,0.512,3086.3,3086.2,0.4521]
[1765574419265,0.512,3086.3,3086.2,0.9042]
[1765574419553,0.512,3086.3,3086.2,0.4521]
[1765574421946,0.512,3086.3,3086.2,0.9042]
[1765574422330,0.97318076,3086.6,3086.2,7.3846614]
[1765574422561,0.97318076,3086.6,3086.5,6.1441874]
[1765574422730,0.512,3086.8,3086.5,6.5962874]
[1765574422927,0.512,3086.8,3086.5,7.0483874]
[1765574424356,0.512,3086.8,3086.5,10.28830047]
[1765574424896,0.512,3086.8,3086.7,6.1441874]
[1765574426472,0.512,3086.8,3085.4,0.002]
[1765574426473,0.405504,3086.7,3085.4,0.002]
[1765574426689,0.405504,3086.5,3085.8,6.1441874]
[1765574426973,0.512,3086.4,3085.8,6.1441874]
[1765574427140,0.9947,3086.4,3085.8,6.1441874]
[1765574427336,0.4521,3085.9,3085.8,6.1441874]
[1765574428156,0.9348,3085.9,3085.8,6.1441874]
[1765574430374,0.9348,3085.9,3085.4,3.69510214]
[1765574430563,0.9348,3085.9,3085.6,6.1441874]
[1765574431068,0.9348,3085.9,3085.5,3.24096575]
[1765574431069,0.4521,3085.7,3085.5,3.24096575]
[1765574431370,0.4521,3085.7,3085.4,0.002]
[1765574431371,0.3938,3085.6,3085.4,0.002]
[1765574431547,0.4515,3085.5,3085.4,0.002]
[1765574431737,0.4521,3085.5,3085.4,0.002]
[1765574432063,0.9947,3086.0,3085.4,6.5982874]
[1765574432269,0.512,3086.0,3085.9,0.4521]
[1765574433862,0.512,3086.1,3085.9,4.14473622]
[1765574434060,0.512,3086.1,3086.0,6.1441874]
[1765574434260,0.512,3086.1,3086.0,7.0483874]
[1765574434572,0.512,3086.1,3086.0,6.5962874]
[1765574436564,0.512,3086.1,3086.0,7.0483874]
[1765574437160,0.512,3086.1,3086.0,6.5962874]
[1765574437373,0.9641,3086.1,3086.0,6.1441874]
[1765574440262,1.4468,3086.1,3086.0,6.1441874]
[1765574440463,1.4468,3086.1,3085.7,6.1441874]
[1765574440671,1.4468,3086.1,3085.7,9.3849364]
[1765574441167,1.4468,3086.1,3085.7,9.8370364]
[1765574441336,0.9641,3086.1,3085.7,6.1441874]
[1765574441537,0.4827,3086.0,3085.7,6.1441874]
[1765574441737,4.68716443,3086.1,3085.7,6.1441874]
[1765574441936,0.9947,3086.1,3085.7,6.1441874]
[1765574442468,0.4827,3086.0,3085.7,6.1441874]
[1765574442775,0.4521,3085.8,3085.7,6.1441874]
[1765574443443,0.9348,3085.8,3085.7,6.1441874]
[1765574443645,0.9348,3085.8,3085.4,6.1461874]
[1765574443850,0.9348,3085.8,3085.4,9.38723757]
[1765574444455,0.9348,3085.8,3085.4,6.1461874]
[1765574444662,0.4827,3085.7,3085.4,6.1461874]
[1765574447397,0.4827,3085.7,3085.4,9.38725703]
[1765574447681,0.9947,3085.7,3085.4,9.38725703]
[1765574448379,0.9947,3085.7,3085.4,6.1461874]
[1765574450473,0.9947,3085.7,3085.4,6.14847204]
[1765574450671,0.512,3085.7,3085.4,6.14847204]
[1765574451649,0.9822,3085.7,3085.4,6.14847204]
[1765574451977,0.4775,3085.5,3085.4,6.14847204]
[1765574452161,0.9822,3085.7,3085.4,6.14847204]
[1765574453079,0.512,3086.4,3085.6,6.59857204]
[1765574453376,0.512,3086.4,3086.3,0.4521]
[1765574453578,0.512,3086.4,3086.2,6.14647204]
[1765574454912,3.75170583,3086.7,3086.3,0.4521]
[1765574455248,4.22190583,3086.7,3086.3,0.4521]
[1765574455784,0.9822,3086.7,3086.3,0.4521]
[1765574455981,0.512,3086.7,3086.4,6.14647204]
[1765574456169,0.512,3086.7,3086.6,0.4521]
[1765574456580,0.512,3086.8,3086.6,6.59857204]
[1765574456984,0.512,3086.8,3086.7,0.4521]
[1765574458290,0.512,3086.8,3086.6,6.14647204]
[1765574459055,3.24039705,3087.0,3086.7,0.4521]
[1765574459361,3.75240753,3087.0,3086.8,6.14647204]
[1765574459558,0.6571,3086.9,3086.4,6.14647204]
[1765574459759,0.6571,3086.9,3086.4,9.3864847]
[1765574460058,0.6571,3086.9,3086.6,6.14647204]
[1765574460371,0.513,3087.0,3086.6,6.14647204]
[1765574460571,0.9832,3087.0,3086.6,6.14647204]
[1765574461894,0.9832,3087.0,3086.5,0.4521]
[1765574462067,0.513,3087.0,3086.5,0.4521]
[1765574462273,0.513,3087.0,3086.5,3.69197198]
[1765574462476,0.4702,3086.9,3086.4,9.38151936]
[1765574462786,0.4702,3086.9,3086.5,3.23990399]
[1765574463194,0.4702,3086.9,3086.5,3.69200399]
[1765574463897,0.513,3087.0,3086.8,0.4521]
[1765574464196,0.001,3087.0,3086.9,0.4521]
[1765574464386,0.001,3087.0,3086.9,0.9042]
[1765574465897,0.001,3087.0,3086.9,4.14369593]
[1765574466394,0.001,3087.0,3086.9,0.4521]
[1765574467470,0.001,3087.0,3086.9,3.69159593]
[1765574468991,0.4785,3087.0,3086.4,6.14152735]
[1765574469190,0.4785,3087.0,3086.1,6.14152735]
[1765574469191,0.4766,3086.4,3086.1,6.14152735]
[1765574469409,0.3844,3086.3,3085.9,9.38197858]
[1765574469568,0.512,3086.6,3086.1,3.24030465]
[1765574469762,0.9822,3086.6,3086.2,0.4521]
[1765574470294,0.9822,3086.6,3086.2,3.69230769]
[1765574470493,0.9822,3086.6,3086.2,0.4521]
[1765574471499,4.22201275,3086.6,3086.2,0.4521]
[1765574471703,0.4775,3086.3,3085.9,9.38197359]
[1765574471883,0.4775,3086.3,3085.8,3.24063122]
[1765574472208,0.9477,3086.3,3085.8,3.24063122]
[1765574472367,0.9477,3086.3,3085.7,3.24075574]
[1765574472883,0.4775,3086.3,3085.7,3.24075574]
[1765574473084,0.4702,3086.2,3085.7,3.24075574]
[1765574474099,0.4702,3086.4,3085.8,0.4521]
[1765574477108,0.4702,3086.4,3085.9,3.2405457]
[1765574480080,0.4702,3086.4,3085.9,3.6926457]
[1765574481095,0.4811,3086.8,3086.3,0.4521]